bitfinex-derivatives/quotes_ETHF0:USTF0_20230403
["timestamp","ask_amount","ask_price","bid_price","bid_amount"]
[1680550537604,0.62660487,1826.2,1826.1,2.9480807]
[1680550537901,0.8516455,1826.3,1826.2,1.0]
[1680550537902,1.42052656,1826.3,1826.2,1.0]
[1680550538798,0.56888106,1826.3,1826.2,1.0]
[1680550542007,0.56888106,1826.3,1826.2,2.084]
[1680550542910,0.56888106,1826.3,1826.2,5.2918]
[1680550544813,0.6259003,1826.3,1826.2,5.2918]
[1680550547309,0.90866474,1826.3,1826.1,1.6820807]
[1680550547508,0.56890409,1826.2,1826.1,0.821]
[1680550548210,0.56890409,1826.2,1826.1,4.0288]
[1680550550115,0.8516455,1826.2,1826.1,4.0288]
[1680550551816,1.42080439,1826.2,1826.1,4.0288]
[1680550553619,0.8516455,1826.2,1826.1,4.0288]
[1680550554215,1.42078917,1826.2,1826.1,4.0288]
[1680550555320,0.8516455,1826.2,1826.1,4.0288]
[1680550557119,0.56900961,1826.2,1826.1,4.0288]
[1680550559025,1.42065511,1826.2,1826.1,4.0288]
[1680550560027,1.4769681,1826.2,1826.1,4.0288]
[1680550560331,0.6253226,1826.2,1826.1,4.0288]
[1680550562937,1.4769681,1826.2,1826.1,4.0288]
[1680550563237,0.90795849,1826.2,1826.1,4.0288]
[1680550563538,0.90795849,1826.2,1826.1,3.2078]
[1680550565332,0.05631299,1826.2,1826.1,3.2078]
[1680550566541,1.19184032,1826.2,1826.1,3.2078]
[1680550567338,0.9103153,1826.2,1826.1,5.8498]
[1680550567733,0.9103153,1826.2,1826.1,6.7108807]
[1680550570845,0.62530585,1826.2,1826.1,7.5318807]
[1680550571045,0.05631299,1826.2,1826.1,7.81986782]
[1680550571240,0.56899286,1826.3,1826.1,7.91404719]
[1680550571436,0.56899286,1826.3,1826.2,2.67553841]
[1680550572542,0.56899286,1826.3,1826.2,1.68253841]
[1680550572738,1.13552733,1826.3,1826.1,3.30197937]
[1680550573041,0.85335625,1826.2,1826.1,3.30197937]
[1680550573543,0.85335625,1826.2,1826.1,4.12297937]
[1680550574742,0.85335625,1826.2,1826.1,5.80551778]
[1680550575041,0.56893658,1826.2,1826.1,4.94397937]
[1680550575840,0.56893658,1826.2,1826.1,6.09304719]
[1680550576636,0.85335625,1826.2,1826.1,4.98446325]
[1680550576840,0.90211454,1826.2,1826.1,4.89028388]
[1680550577143,0.90211454,1826.2,1826.1,5.16228388]
[1680550577341,1.42248664,1826.2,1826.1,5.16228388]
[1680550578238,0.85335625,1826.2,1826.1,5.16228388]
[1680550580251,0.85335625,1826.3,1826.1,5.16228388]
[1680550580454,0.85335625,1826.2,1826.1,5.16228388]
[1680550580845,1.13552733,1826.3,1826.1,4.3008]
[1680550581040,0.85348777,1826.2,1826.1,4.3008]
[1680550581249,0.90190381,1826.2,1826.1,4.3008]
[1680550581749,0.04841604,1826.2,1826.1,4.3008]
[1680550582147,1.18394337,1826.2,1826.0,1.95348388]
[1680550582347,0.85359433,1826.1,1826.0,1.092]
[1680550583047,0.85359433,1826.1,1825.9,4.06928388]
[1680550583252,0.85359433,1826.0,1825.9,4.06928388]
[1680550583445,0.85359433,1826.0,1825.9,3.2078]
[1680550584151,0.85359433,1826.1,1825.9,3.2078]
[1680550584343,0.85359433,1826.0,1825.9,3.2078]
[1680550589053,0.85359433,1826.1,1825.9,3.2078]
[1680550589954,0.9015988,1826.0,1825.9,3.2078]
[1680550590347,0.04800447,1826.0,1825.9,3.2078]
[1680550591154,0.9015988,1826.0,1825.9,3.2078]
[1680550594059,0.9015988,1826.0,1825.8,1.63002766]
[1680550596455,0.9015988,1826.0,1825.8,1.092]
[1680550598764,0.9015988,1826.0,1825.7,3.75852473]
[1680550599261,0.85359433,1825.9,1825.7,3.75852473]
[1680550599462,0.85359433,1825.9,1825.7,0.55072473]
[1680550599663,0.85359433,1825.9,1825.6,2.72349485]
[1680550599962,0.9015988,1826.0,1825.6,2.72349485]
[1680550602061,1.9885988,1826.0,1825.6,1.63149485]
[1680550602370,1.9885988,1826.0,1825.5,10.07538388]
[1680550602568,2.53203383,1826.0,1825.5,10.07538388]
[1680550604470,2.53203383,1826.0,1825.5,11.68647099]
[1680550604870,2.7305759,1826.0,1825.5,11.68647099]
[1680550605569,5.9383759,1826.0,1825.5,11.68647099]
[1680550606273,2.7305759,1826.0,1825.5,11.68647099]
[1680550609779,2.7305759,1826.0,1825.5,10.82498711]
[1680550610169,2.7305759,1826.0,1825.5,11.68647099]
[1680550610976,2.7305759,1826.0,1825.5,10.82498711]
[1680550612072,1.093,1825.9,1825.5,10.82198711]
[1680550615773,1.093,1825.9,1825.7,3.2078]
[1680550618877,2.53203383,1826.0,1825.7,3.2078]
[1680550619976,2.65408625,1826.0,1825.7,3.2078]
[1680550620485,2.11065122,1826.0,1825.7,3.2078]
[1680550620986,2.11065122,1826.0,1825.7,3.76808722]
[1680550622185,1.02365122,1826.0,1825.7,4.86008722]
[1680550622484,0.85359433,1825.9,1825.7,4.86008722]
[1680550622679,1.02365122,1826.0,1825.8,4.2078]
[1680550622881,0.9015988,1826.0,1825.8,4.2078]
[1680550623483,0.9015988,1826.0,1825.8,3.2078]
[1680550627294,0.85359433,1825.9,1825.8,3.2078]
[1680550628292,0.9015988,1826.0,1825.8,3.2078]
[1680550628885,0.9015988,1826.0,1825.8,4.06928388]
[1680550629091,0.9015988,1826.0,1825.9,1.093]
[1680550629294,0.85359433,1826.1,1825.9,1.093]
[1680550629485,0.85359433,1826.1,1826.0,4.2998]
[1680550629885,0.85359433,1826.1,1826.0,4.36044768]
[1680550631397,0.85359433,1826.1,1826.0,3.26844768]
[1680550631800,0.85359433,1826.1,1826.0,0.06064768]
[1680550631999,1.13552733,1826.1,1826.0,0.06064768]
[1680550632200,1.18936989,1826.1,1825.8,4.2998]
[1680550632398,0.85213186,1825.9,1825.8,3.2078]
[1680550633201,0.85225051,1825.9,1825.8,3.2078]
[1680550633699,1.13552733,1826.0,1825.8,3.2078]
[1680550634499,1.13552733,1825.9,1825.8,3.2078]
[1680550634699,1.13552733,1826.0,1825.8,3.2078]
[1680550634903,1.13552733,1825.9,1825.8,3.2078]
[1680550636905,1.18857121,1825.9,1825.8,3.2078]
[1680550639003,0.05304388,1825.9,1825.8,3.2078]
[1680550641706,0.90668675,1825.9,1825.8,4.2998]
[1680550643508,0.03980412,1825.9,1825.8,6.16128388]
[1680550643702,1.13552733,1826.1,1825.8,6.23572908]
[1680550643895,1.13552733,1826.2,1826.0,4.3028]
[1680550645513,1.13552733,1826.3,1826.0,4.3028]
[1680550645705,1.13552733,1826.3,1826.2,3.2078]
[1680550651010,1.13552733,1826.3,1826.2,3.28258656]
[1680550652907,1.13552733,1826.4,1826.2,4.37758656]
[1680550653204,1.13552733,1826.5,1826.3,2.085]
[1680550653409,1.13552733,1826.5,1826.4,4.3028]
[1680550653911,1.13552733,1826.7,1826.5,1.095]
[1680550654108,1.13552733,1826.7,1826.6,4.2998]
[1680550656009,1.13552733,1826.8,1826.6,4.2998]
[1680550656315,1.13552733,1826.8,1826.7,1.095]
[1680550661613,1.13552733,1826.8,1826.6,4.2928]
[1680550665017,1.13552733,1826.8,1826.7,0.35794005]
[1680550669619,1.13552733,1826.9,1826.7,0.35794005]
[1680550670317,1.13552733,1826.8,1826.7,0.35794005]
[1680550671516,1.13552733,1826.9,1826.7,0.35794005]
[1680550671922,1.13552733,1826.8,1826.7,0.35794005]
[1680550673822,1.13552733,1826.9,1826.7,0.35794005]
[1680550674316,1.13552733,1826.8,1826.7,0.35794005]
[1680550674518,1.13552733,1826.9,1826.7,0.35794005]
[1680550674818,1.13552733,1826.8,1826.7,0.35794005]
[1680550675018,1.13552733,1826.9,1826.7,0.35794005]
[1680550677435,1.13552733,1826.8,1826.7,0.35794005]
[1680550677726,1.13552733,1826.9,1826.7,0.35794005]
[1680550679833,1.13552733,1826.8,1826.7,0.35794005]
[1680550680526,1.13552733,1826.9,1826.7,0.35794005]
[1680550681730,1.13552733,1826.8,1826.7,0.35794005]
[1680550682525,1.13552733,1826.8,1826.5,4.0288]
[1680550682724,1.13552733,1826.8,1826.7,0.35878844]
[1680550683135,1.13552733,1826.8,1826.5,4.0288]
[1680550686337,1.13552733,1826.8,1826.7,0.817]
[1680550686935,1.13806928,1826.9,1826.7,5.8458]
[1680550687130,1.13806928,1827.0,1826.8,1.637]
[1680550687339,1.41940916,1827.0,1826.9,0.817]
[1680550687636,1.41940916,1827.1,1826.9,0.817]
[1680550687831,1.41940916,1827.1,1827.0,0.821]
[1680550689336,1.13873131,1827.1,1827.0,1.641]
[1680550689838,1.13873131,1827.2,1827.0,2.641]
[1680550690039,1.13873131,1827.2,1827.1,5.0248]
[1680550690832,1.13873131,1827.3,1827.2,1.0]
[1680550691142,1.13873131,1827.3,1827.2,1.821]
[1680550691338,1.13873131,1827.3,1827.2,2.637]
[1680550692137,1.13873131,1827.3,1827.2,2.088]
[1680550693436,1.13873131,1827.4,1827.2,1.088]
[1680550693637,1.41940916,1827.5,1827.3,1.084]
[1680550694138,1.13848855,1827.4,1827.3,4.2918]
[1680550695050,1.13848855,1827.4,1827.3,4.98160973]
[1680550699053,1.13848855,1827.5,1827.3,4.98160973]
[1680550700651,1.13848855,1827.4,1827.3,1.77380973]
[1680550701144,4.34628855,1827.5,1827.3,1.77380973]
[1680550701349,1.13848855,1827.4,1827.3,1.77380973]
[1680550701742,3.23248855,1827.4,1826.8,3.2078]
[1680550701944,3.23248855,1827.4,1826.5,9.3212]
[1680550701945,1.6623425,1827.0,1826.5,9.3212]
[1680550702443,0.5683425,1826.9,1826.5,9.3212]
[1680550702946,0.5683425,1826.9,1826.5,4.3018]
[1680550704353,0.5683425,1826.9,1826.8,1.086]
[1680550709453,0.5683425,1826.9,1826.8,1.40750689]
[1680550711551,0.5683425,1826.9,1826.8,0.32150689]
[1680550711751,0.8523845,1826.9,1826.8,0.32150689]
[1680550712646,0.8523845,1826.9,1826.6,1.088]
[1680550712847,0.56808711,1826.8,1826.6,1.088]
[1680550713344,0.56808711,1826.8,1826.4,1.094]
[1680550713555,0.56808711,1826.6,1826.4,1.094]
[1680550719569,0.56808711,1826.6,1826.3,3.2078]
[1680550719857,1.42047161,1826.6,1826.3,3.2078]
[1680550720457,0.56808711,1826.5,1826.2,1.62462987]
[1680550725067,0.56808711,1826.5,1826.3,0.15038838]
[1680550726271,4.86988711,1826.5,1826.3,0.15038838]
[1680550726473,4.86988711,1826.5,1826.0,1.63430824]
[1680550726474,2.14276198,1826.4,1826.0,1.63430824]
[1680550726775,4.86913959,1826.2,1825.7,4.76808722]
[1680550726971,4.86913959,1826.2,1825.7,4.85808722]
[1680550727475,4.86913959,1826.2,1825.7,1.65028722]
[1680550727681,4.86913959,1826.2,1825.7,4.85808722]
[1680550727865,4.86913959,1826.2,1825.7,6.46380581]
[1680550728477,4.86913959,1826.2,1825.7,1.65028722]
[1680550730870,5.42278497,1826.2,1825.7,4.85808722]
[1680550731065,5.42278497,1826.2,1825.7,1.65028722]
[1680550731779,3.2078,1826.0,1825.7,1.65028722]
[1680550732683,5.42278497,1826.2,1825.7,1.65028722]
[1680550732878,3.2078,1826.0,1825.7,1.65028722]
[1680550733078,4.2928,1826.0,1825.7,0.56028722]
[1680550733381,4.2928,1826.0,1825.5,9.2125]
[1680550733682,4.2928,1826.0,1825.5,11.39096497]
[1680550733879,0.35148731,1825.9,1825.5,11.39096497]
[1680550734379,0.35148731,1825.9,1825.5,6.47326497]
[1680550737482,0.35148731,1825.9,1825.5,4.838225]
[1680550739988,0.46375539,1825.9,1825.5,4.838225]
[1680550741978,0.46375539,1825.9,1825.6,1.087]
[1680550744579,0.46375539,1825.9,1825.5,3.751225]
[1680550744788,0.56733959,1826.4,1825.8,4.2948]
[1680550744980,0.56733959,1826.5,1826.2,1.088]
[1680550745487,1.1280868,1826.5,1826.2,1.088]
[1680550746884,0.56733959,1826.4,1826.2,1.088]
[1680550747186,1.97909618,1826.5,1826.2,1.088]
[1680550747587,0.56733959,1826.4,1826.2,1.088]
[1680550748389,1.97909618,1826.5,1826.2,1.088]
[1680550748897,0.56733959,1826.4,1826.2,1.088]
[1680550751495,0.56733959,1826.4,1826.2,4.2958]
[1680550752498,0.1612745,1826.3,1826.2,4.2958]
[1680550752702,0.56733959,1826.4,1826.2,4.2958]
[1680550754798,0.56733959,1826.3,1826.2,4.2958]
[1680550755103,0.72849765,1826.3,1826.2,4.2958]
[1680550756400,0.56733959,1826.3,1826.2,4.2958]
[1680550760306,0.56733959,1826.3,1826.2,1.088]
[1680550760699,1.41834897,1826.3,1826.2,1.088]
[1680550761705,0.85100938,1826.3,1826.2,1.088]
[1680550762105,0.85100938,1826.3,1826.1,1.086]
[1680550762304,0.56775452,1826.2,1826.1,1.086]
[1680550763207,0.85100938,1826.2,1826.0,1.086]
[1680550763512,1.41873825,1826.1,1825.7,2.52463676]
[1680550763809,0.56770365,1825.9,1825.7,1.09]
[1680550764007,0.69984875,1826.0,1825.7,1.09]
[1680550764803,1.55085813,1826.0,1825.7,1.09]
[1680550765304,0.56770365,1825.9,1825.7,1.09]
[1680550768110,1.41871303,1825.9,1825.7,1.09]
[1680550768510,0.56770365,1825.9,1825.7,1.09]
[1680550768908,0.56770365,1825.8,1825.7,1.09]
[1680550769110,1.41871303,1825.9,1825.7,1.09]
[1680550769310,0.56770365,1825.9,1825.7,1.09]
[1680550770005,0.70109997,1825.8,1825.7,1.09]
[1680550772114,0.70109997,1825.8,1825.6,1.65715288]
[1680550774814,0.13339632,1825.8,1825.6,1.65715288]
[1680550775013,0.56770365,1825.8,1825.6,1.65715288]
[1680550775817,1.41871303,1825.9,1825.6,1.65715288]
[1680550776917,0.56770365,1825.9,1825.6,1.65715288]
[1680550781517,1.41871303,1825.9,1825.6,1.65715288]
[1680550781715,0.56770365,1825.9,1825.6,1.65715288]
[1680550782117,4.62651303,1825.8,1825.5,1.11657788]
[1680550782317,0.56770365,1825.7,1825.5,0.543425]
[1680550782518,0.56770365,1825.7,1825.4,1.65915288]
[1680550784018,1.65270365,1825.5,1825.3,0.54334067]
[1680550784223,1.65270365,1825.5,1825.2,1.67603533]
[1680550784224,5.15280938,1825.4,1825.0,0.57315288]
[1680550784430,1.094,1825.1,1824.9,0.57315288]
[1680550784726,1.65071483,1825.3,1825.0,0.57315288]
[1680550785022,0.76174953,1825.2,1824.9,5.64243676]
[1680550785521,0.76174953,1825.2,1825.0,0.57315288]
[1680550785919,0.76174953,1825.2,1824.9,3.78095288]
[1680550787019,0.76174953,1825.2,1825.1,1.086]
[1680550787218,0.56671483,1825.5,1825.1,1.086]
[1680550787526,0.56671483,1825.5,1825.2,1.084]
[1680550787727,4.62552421,1825.6,1825.2,1.084]
[1680550788219,3.77451483,1825.6,1825.2,1.084]
[1680550788622,4.62552421,1825.6,1825.2,1.084]
[1680550789123,3.77451483,1825.6,1825.2,1.084]
[1680550791624,3.77451483,1825.6,1825.0,1.66315288]
[1680550791625,3.2078,1825.3,1825.0,1.66315288]
[1680550791826,1.094,1825.3,1824.8,2.74022542]
[1680550792332,4.3018,1825.3,1824.8,1.088]
[1680550793724,1.094,1825.3,1824.8,1.088]
[1680550794930,1.084,1825.4,1824.9,1.084]
[1680550795227,1.62047408,1825.4,1824.9,4.2918]
[1680550795829,1.085,1825.1,1824.7,10.92179564]
[1680550796025,1.085,1825.1,1824.7,5.95879564]
[1680550796333,3.2078,1825.3,1824.9,1.088]
[1680550799230,0.53647408,1825.4,1825.1,1.086]
[1680550799432,4.85851483,1825.5,1825.1,1.086]
[1680550800135,0.69340228,1825.4,1825.1,1.086]
[1680550802128,0.69340228,1825.4,1825.0,1.088]
[1680550802324,0.69340228,1825.4,1825.2,1.094]
[1680550806142,0.50432928,1825.4,1825.2,1.094]
[1680550807538,3.2078,1825.3,1825.0,1.62345995]
[1680550807736,0.50432928,1825.4,1825.3,1.089]
[1680550807931,0.50432928,1825.4,1825.3,2.175]
[1680550808133,0.50432928,1825.4,1825.3,1.089]
[1680550809633,0.50432928,1825.4,1825.3,4.2968]
[1680550812143,0.50432928,1825.4,1825.3,4.3018]
[1680550812438,0.50432928,1825.4,1825.3,4.85551243]
[1680550816150,0.56671483,1825.6,1825.3,4.85551243]
[1680550819842,0.56671483,1825.6,1825.3,4.85169234]
[1680550820246,0.36011297,1825.5,1825.3,4.85169234]
[1680550821948,0.35300639,1825.5,1825.3,4.85169234]
[1680550825750,0.91972122,1825.5,1825.3,4.85169234]
[1680550830656,0.56671483,1825.4,1825.3,4.85169234]
[1680550830850,1.7707306,1825.5,1825.3,4.85169234]
[1680550831050,0.35873298,1825.4,1825.3,4.85169234]
[1680550834059,0.56671483,1825.5,1825.4,1.0]
[1680550834251,0.56671483,1825.6,1825.4,2.088]
[1680550834455,0.56671483,1825.6,1825.5,4.2978]
[1680550834764,1.41772421,1825.7,1825.5,4.2978]
[1680550834949,1.41772421,1825.7,1825.6,1.088]
[1680550835356,1.6175518,1825.7,1825.6,1.088]
[1680550835657,0.76654242,1825.7,1825.6,1.088]
[1680550842161,0.76654242,1825.7,1825.6,1.086]
[1680550843863,1.6175518,1825.7,1825.6,1.086]
[1680550844060,0.76654242,1825.7,1825.6,1.086]
[1680550844364,1.6175518,1825.7,1825.6,1.086]
[1680550844663,1.05083697,1825.7,1825.6,1.086]
[1680550844864,1.61672174,1825.7,1825.6,1.086]
[1680550845471,0.76571236,1825.7,1825.6,1.086]
[1680550846061,1.05083697,1825.7,1825.6,1.086]
[1680550852072,1.05083697,1825.7,1825.6,0.814]
[1680550857267,3.40762759,1825.7,1825.3,2.23319631]
[1680550857471,5.97739157,1825.4,1825.3,0.18863202]
[1680550857671,14.555,1825.3,1824.5,1.41252187]
[1680550857878,0.822,1824.8,1824.5,0.55103799]
[1680550858176,1.38677312,1824.6,1824.2,1.68048388]
[1680550858367,1.38677312,1824.6,1824.2,0.819]
[1680550858978,3.2078,1824.5,1824.2,0.819]
[1680550859181,1.38677312,1824.6,1824.2,0.819]
[1680550859381,3.2078,1824.5,1824.2,0.819]
[1680550859569,3.2078,1824.5,1824.2,1.37071473]
[1680550860176,3.77257312,1824.5,1824.2,1.37071473]
[1680550860378,3.2078,1824.5,1824.2,1.37071473]
[1680550860774,1.38677312,1824.6,1824.2,1.37071473]
[1680550862074,0.56477312,1824.6,1824.3,1.086]
[1680550862279,1.65377312,1824.6,1824.2,0.55171473]
[1680550862476,1.65377312,1824.6,1824.1,2.95348388]
[1680550862778,1.089,1824.6,1824.1,6.16128388]
[1680550862983,3.2078,1824.5,1824.1,5.16128388]
[1680550863281,4.86157312,1824.6,1824.1,5.16128388]
[1680550863980,1.086,1824.4,1824.0,5.96158388]
[1680550864180,1.086,1824.4,1824.0,1.39776162]
[1680550864376,4.2938,1824.4,1824.0,1.39776162]
[1680550865277,0.86061026,1824.3,1824.0,0.53627774]
[1680550865577,4.2938,1824.4,1823.9,4.57420886]
[1680550866479,4.2938,1824.4,1823.9,3.57420886]
[1680550867377,4.2938,1824.4,1823.9,4.11293445]
[1680550867879,4.2938,1824.4,1823.9,3.25145057]
[1680550869678,5.99162298,1824.9,1824.3,1.093]
[1680550869881,3.74312499,1824.9,1824.3,1.093]
[1680550870086,1.086,1824.8,1824.3,1.093]
[1680550871282,3.74312499,1824.9,1824.1,1.086]
[1680550871283,1.096,1824.6,1824.1,1.086]
[1680550871484,1.096,1824.5,1824.0,1.093]
[1680550872777,1.089,1824.6,1824.2,1.096]
[1680550877378,1.096,1824.8,1824.3,4.2938]
[1680550877582,1.096,1824.8,1824.5,3.2078]
[1680550877883,3.74312499,1824.9,1824.5,4.3008]
[1680550878284,3.74312499,1824.9,1824.5,1.093]
[1680550879293,3.74312499,1824.9,1824.5,4.3008]
[1680550879486,3.74312499,1824.9,1824.7,1.096]
[1680550879677,0.53532499,1824.9,1824.7,1.096]
[1680550879881,4.2968,1825.2,1824.7,1.096]
[1680550880282,0.80059777,1825.1,1824.7,1.096]
[1680550880479,0.80059777,1825.1,1824.9,1.087]
[1680550882094,0.80059777,1825.1,1824.8,1.092]
[1680550883290,0.80059777,1825.1,1824.9,1.086]
[1680550885891,0.80059777,1825.1,1824.9,4.2938]
[1680550886095,0.54396866,1825.4,1825.0,1.096]
[1680550886392,1.089,1825.5,1825.1,4.2938]
[1680550887690,0.54347549,1825.6,1825.4,1.086]
[1680550887884,7.38948899,1825.8,1825.4,1.086]
[1680550888190,7.08478895,1825.8,1825.4,1.086]
[1680550888388,5.40103277,1825.8,1825.4,1.086]
[1680550888582,4.85857312,1825.8,1825.4,1.086]
[1680550889590,5.70573281,1825.8,1825.4,1.086]
[1680550889786,0.56477312,1825.7,1825.4,1.086]
[1680550889991,4.85857312,1825.8,1825.4,1.086]
[1680550890682,0.56477312,1825.7,1825.4,1.086]
[1680550891389,5.70573281,1825.8,1825.4,1.086]
[1680550891785,0.56477312,1825.7,1825.4,1.086]
[1680550892093,0.56477312,1825.7,1825.3,4.2938]
[1680550893880,0.56477312,1825.7,1825.5,1.087]
[1680550895295,0.11375713,1825.6,1825.5,1.087]
[1680550895498,0.11375713,1825.6,1825.3,3.2078]
[1680550895688,0.56477312,1825.6,1825.2,1.086]
[1680550897803,3.77257312,1825.6,1825.2,1.086]
[1680550899591,0.56477312,1825.6,1825.2,1.086]
[1680550900597,4.86157312,1825.6,1825.1,1.086]
[1680550901101,5.70873281,1825.6,1825.1,1.086]
[1680550901700,0.56477312,1825.5,1825.1,1.086]
[1680550902999,0.56477312,1825.5,1825.3,1.096]
[1680550903302,0.56477312,1825.6,1825.3,1.096]
[1680550903498,0.56477312,1825.6,1825.4,3.2078]
[1680550906904,0.56477312,1825.6,1825.5,1.086]
[1680550907104,0.56477312,1825.7,1825.5,1.086]
[1680550910295,0.07581738,1825.6,1825.5,1.086]
[1680550910801,0.56477312,1825.7,1825.5,1.086]
[1680550914819,1.66077312,1825.7,1825.4,3.2078]
[1680550915811,0.56477312,1825.6,1825.4,3.2078]
[1680550917524,0.56477312,1825.6,1825.2,4.2948]
[1680550918624,1.41193281,1825.6,1825.2,4.2948]
[1680550919919,0.56477312,1825.5,1825.2,4.2948]
[1680550922022,0.56477312,1825.5,1825.2,1.087]
[1680550922320,1.41193281,1825.5,1825.2,1.086]
[1680550922525,0.56477312,1825.5,1825.2,1.086]
[1680550922825,0.56477312,1825.4,1825.2,1.086]
[1680550924322,0.56477312,1825.4,1825.2,4.2938]
[1680550925417,0.07512694,1825.3,1825.2,4.2938]
[1680550925826,0.56477312,1825.4,1825.2,4.2938]
[1680550927821,0.56477312,1825.3,1825.2,4.2938]
[1680550928528,1.41193281,1825.4,1825.2,4.2938]
[1680550928719,0.56477312,1825.4,1825.3,1.0]
[1680550929626,0.84715969,1825.4,1825.3,1.0]
[1680550930729,0.56594787,1825.4,1825.3,2.086]
[1680550931029,0.56594787,1825.4,1825.3,2.096]
[1680550931729,0.84715969,1825.4,1825.3,2.096]
[1680550937235,0.85005982,1825.5,1825.4,1.347]
[1680550937534,1.12954625,1825.7,1825.4,6.50328388]
[1680550937731,1.12954625,1825.7,1825.6,3.2078]
[1680550938130,1.12954625,1825.7,1825.6,4.2998]
[1680550938341,1.12954625,1825.8,1825.6,4.2998]
[1680550938539,1.12954625,1825.8,1825.7,1.087]
[1680550938734,1.12954625,1825.8,1825.7,1.22109296]
[1680550940437,1.12954625,1825.9,1825.7,1.22109296]
[1680550940630,1.12954625,1825.9,1825.8,4.2938]
[1680550940943,1.12954625,1826.0,1825.8,4.45642013]
[1680550941235,1.41193281,1826.1,1825.8,4.45642013]
[1680550941236,1.41193281,1826.1,1825.9,1.092]
[1680550941441,1.41193281,1826.1,1826.0,3.2078]
[1680550942038,1.41193281,1826.1,1826.0,4.3008]
[1680550942235,1.1326365,1826.1,1826.0,4.3008]
[1680550944242,1.1326365,1826.2,1826.0,4.3008]
[1680550944544,1.1326365,1826.2,1826.1,1.096]
[1680550951049,1.1326365,1826.2,1826.0,3.2078]
[1680550951434,2.77968077,1826.3,1826.0,3.2078]
[1680550951648,1.69068077,1826.3,1826.1,1.086]
[1680550952046,1.69068077,1826.3,1826.0,4.2948]
[1680550952751,1.69068077,1826.3,1826.1,1.096]
[1680550954957,1.1326365,1826.2,1826.1,1.096]
[1680550955450,1.1326365,1826.2,1826.1,1.25929835]
[1680550957046,1.69068077,1826.3,1826.1,1.25929835]
[1680550957250,1.1326365,1826.2,1826.1,1.25929835]
[1680550957751,1.69068077,1826.3,1826.1,1.25929835]
[1680550957950,1.1326365,1826.2,1826.1,1.25929835]
[1680550958850,1.1326365,1826.3,1826.1,1.25929835]
[1680550960753,1.1326365,1826.3,1826.2,3.2078]
[1680550960954,1.67742039,1826.4,1826.2,3.2078]
[1680550961255,1.1326365,1826.3,1826.2,3.2078]
[1680550961455,1.1326365,1826.4,1826.2,3.2078]
[1680550962154,1.9476365,1826.4,1826.2,3.2078]
[1680550963252,1.1326365,1826.3,1826.2,3.2078]
[1680550966864,1.1326365,1826.3,1826.2,4.0248]
[1680550967162,2.22643522,1826.5,1826.2,4.0248]
[1680550967358,2.22643522,1826.5,1826.3,0.822]
[1680550967558,1.67541197,1826.5,1826.3,0.822]
[1680550968064,1.1326365,1826.5,1826.3,0.822]
[1680550970264,1.1326365,1826.4,1826.3,0.822]
[1680550972064,1.1326365,1826.4,1826.2,4.2998]
[1680550976170,1.1326365,1826.3,1826.2,4.2998]
[1680550980375,1.41193281,1826.4,1826.2,4.2998]
[1680550982174,1.41193281,1826.3,1826.2,3.2078]
[1680550982385,1.13539343,1826.8,1826.2,17.80745753]
[1680550982568,1.13570119,1827.1,1826.8,4.928]
[1680550982770,1.13571818,1827.1,1827.0,1.092]
[1680550984072,1.13571818,1827.2,1827.0,1.092]
[1680550984278,1.13571818,1827.1,1827.0,1.092]
[1680550984576,1.13571818,1827.3,1827.0,1.092]
[1680550984990,1.13571818,1827.3,1827.1,3.2078]
[1680550985382,1.13571818,1827.3,1827.2,0.67463367]
[1680550986802,1.13571818,1827.4,1827.2,0.67463367]
[1680550988685,1.67600972,1827.5,1827.2,0.67463367]
[1680550991489,0.54029154,1827.5,1827.2,0.67463367]
[1680550991689,6.00248433,1827.6,1827.2,0.67463367]
[1680550992189,6.00248433,1827.6,1827.3,1.094]
[1680550992994,6.55974889,1827.6,1827.3,1.094]
[1680550997192,0.84686772,1827.5,1827.3,1.094]
[1680550997898,0.84686772,1827.5,1827.2,1.76963367]
[1680551000406,7.36589843,1827.6,1827.2,1.76963367]
[1680551001496,0.55726456,1827.6,1827.4,1.095]
[1680551001696,1.40073223,1827.7,1827.4,1.095]
[1680551001903,1.94778458,1827.7,1827.4,1.095]
[1680551002200,3.57860031,1827.7,1827.4,1.095]
[1680551002497,1.39392007,1827.7,1827.4,1.095]
[1680551003000,0.54705235,1827.7,1827.4,1.095]
[1680551003200,4.05466772,1827.8,1827.4,1.095]
[1680551004302,0.84686772,1827.7,1827.4,1.095]
[1680551004800,4.6153627,1827.8,1827.4,1.095]
[1680551005504,0.84686772,1827.7,1827.4,1.095]
[1680551005703,4.6153627,1827.8,1827.4,1.095]
[1680551005904,0.84686772,1827.7,1827.4,1.095]
[1680551010898,1.0,1827.6,1827.3,5.09067735]
[1680551011105,1.0,1827.6,1827.3,0.78787735]
[1680551011106,1.091,1827.4,1827.3,0.78787735]
[1680551011508,4.2988,1827.4,1827.0,1.095]
[1680551012103,1.091,1827.3,1826.9,1.095]
[1680551013102,4.05466772,1827.4,1826.7,9.3715]
[1680551013103,1.095,1827.1,1826.7,9.3715]
[1680551013408,1.095,1827.1,1826.7,4.3018]
[1680551013612,1.091,1827.3,1826.9,1.095]
[1680551013815,4.2988,1827.3,1826.9,1.095]
[1680551014112,5.14566772,1827.3,1826.9,1.095]
[1680551014712,5.68499775,1827.3,1826.9,1.095]
[1680551015412,5.68499775,1827.3,1827.0,0.6284813]
[1680551018413,0.84686772,1827.2,1827.0,0.6284813]
[1680551022012,0.84686772,1827.2,1827.0,1.7204813]
[1680551024516,0.84686772,1827.1,1827.0,1.7204813]
[1680551026317,1.13571818,1827.1,1827.0,1.7204813]
[1680551026513,1.13571818,1827.1,1827.0,1.7234813]
[1680551026706,0.8529524,1827.1,1827.0,1.7234813]
[1680551027110,0.8529524,1827.1,1827.0,2.7234813]
[1680551030219,0.8529524,1827.2,1827.0,2.7234813]
[1680551030415,0.8529524,1827.2,1827.1,4.3028]
[1680551031722,1.13571818,1827.3,1827.1,4.3028]
[1680551031921,1.13571818,1827.3,1827.2,1.093]
[1680551037023,1.41924179,1827.4,1827.2,1.094]
[1680551037325,1.13732163,1827.3,1827.2,1.094]
[1680551040524,1.41924179,1827.5,1827.2,1.094]